lending/lending_fUSD_20250121
["ID","MTS","AMOUNT","RATE_DAILY","PERIOD"]
[349902637,1737487839490,-4174.24247853,0.00020799,2]
[349902639,1737487839499,-8599.98495886,0.00020804,2]
[349902641,1737487839509,-200.0,0.00020808,2]
[349902643,1737487839519,-8599.98495886,0.00020812,2]
[349902645,1737487839530,-4174.24247853,0.00020814,2]
[349902647,1737487839540,-4174.24247853,0.00020819,2]
[349902649,1737487839549,-500.0,0.00020819,2]
[349902651,1737487839559,-1721.52479998,0.00020819,2]
[349902653,1737487839570,-438.08,0.0002082,2]
[349902655,1737487839579,-534.46,0.0002082,2]
[349902657,1737487839587,-500.0,0.0002082,2]
[349902659,1737487839596,-500.0,0.0002082,2]
[349902661,1737487839608,-500.0,0.0002082,2]
[349902662,1737487839617,-500.0,0.0002082,2]
[349902663,1737487839626,-500.0,0.0002082,2]
[349902664,1737487839635,-500.0,0.0002082,2]
[349902665,1737487839644,-500.0,0.0002082,2]
[349902666,1737487839653,-500.0,0.0002082,2]
[349902667,1737487839662,-500.0,0.0002082,2]
[349902668,1737487839672,-500.0,0.0002082,2]
[349902669,1737487839681,-572.4,0.0002082,2]
[349902671,1737487839690,-500.0,0.0002082,2]
[349902673,1737487839699,-500.0,0.0002082,2]
[349902675,1737487839709,-402.12837575,0.0002082,2]
[349902677,1737487839719,-402.12837575,0.00020825,2]
[349902679,1737487839728,-200.0,0.00020828,2]
[349902681,1737487839738,-552.35072819,0.0002083,2]
[349902683,1737487839750,-676.99884865,0.0002083,2]
[349902746,1737487840338,-7370.63538202,0.0002083,2]
[349902748,1737487840348,-502.66295749,0.00020831,2]
[349902750,1737487840358,-527.56267235,0.00020838,2]
[349902752,1737487840367,-502.66295749,0.00020841,2]
[349902754,1737487840377,-4174.24247853,0.00020847,2]
[349902756,1737487840387,-142.00550389,0.00020854,2]
[349902759,1737487840398,-57.99449611,0.00020854,2]
[349902761,1737487840408,-547.92253785,0.00020855,2]
[349902763,1737487840418,-181.31,0.00020856,2]
[349902765,1737487840428,-200.0,0.00020861,2]
[349902767,1737487840437,-609.5,0.00020864,2]
[349902769,1737487840447,-500.0,0.00020864,2]
[349902771,1737487840456,-500.0,0.00020864,2]
[349902773,1737487840465,-550.17754865,0.00020864,2]
[349902775,1737487840475,-500.0,0.00020864,2]
[349902776,1737487840484,-500.0,0.00020864,2]
[349902778,1737487840493,-500.0,0.00020864,2]
[349902780,1737487840502,-324.84324698,0.00020864,2]
[349902783,1737487840519,-175.15675302,0.00020864,2]
[349902785,1737487840530,-500.0,0.00020864,2]
[349902787,1737487840540,-500.0,0.00020864,2]
[349902789,1737487840549,-500.0,0.00020864,2]
[349902791,1737487840558,-500.0,0.00020864,2]
[349902793,1737487840568,-1732.63622699,0.00020865,2]
[349902795,1737487840584,-3267.36377301,0.00020865,2]
[349902797,1737487840592,-439.532057,0.00020865,2]
[349902799,1737487840603,-1039.64,0.00020865,2]
[349902802,1737487840617,-500.0,0.00020865,2]
[349902804,1737487840627,-610.61,0.00020865,2]
[349902806,1737487840636,-273.716328,0.00020865,2]
[349902808,1737487840645,-500.0,0.00020865,2]
[349902810,1737487840653,-910.13,0.00020865,2]
[349902811,1737487840663,-509.62,0.00020865,2]
[349902812,1737487840673,-771.25,0.00020865,2]
[349902813,1737487840683,-1019.02,0.00020865,2]
[349902814,1737487840691,-500.0,0.00020865,2]
[349902815,1737487840701,-664.9,0.00020865,2]
[349902816,1737487840711,-530.65,0.00020865,2]
[349902817,1737487840720,-1024.4,0.00020865,2]
[349902819,1737487840729,-852.04,0.00020865,2]
[349902821,1737487840738,-500.0,0.00020865,2]
[349902822,1737487840747,-500.0,0.00020865,2]
[349902824,1737487840757,-500.0,0.00020865,2]
[349902826,1737487840766,-500.0,0.00020865,2]
[349902828,1737487840775,-1122.63,0.00020865,2]
[349902831,1737487840788,-559.79,0.00020865,2]
[349902832,1737487840798,-500.0,0.00020865,2]
[349902834,1737487840807,-1514.3,0.00020865,2]
[349902836,1737487840817,-691.82,0.00020865,2]
[349902838,1737487840827,-1255.99,0.00020865,2]
[349902840,1737487840837,-500.0,0.00020865,2]
[349902842,1737487840846,-948.99,0.00020865,2]
[349902844,1737487840855,-500.0,0.00020865,2]
[349902846,1737487840863,-777.81,0.00020865,2]
[349902848,1737487840872,-685.7,0.00020865,2]
[349902850,1737487840881,-1053.23,0.00020865,2]
[349902852,1737487840890,-1960.93,0.00020865,2]
[349902854,1737487840899,-537.01,0.00020865,2]
[349902856,1737487840908,-758.76,0.00020865,2]
[349902858,1737487840916,-500.0,0.00020865,2]
[349902860,1737487840926,-1218.89,0.00020865,2]
[349902862,1737487840935,-500.0,0.00020865,2]
[349902864,1737487840944,-500.0,0.00020865,2]
[349902866,1737487840953,-981.08,0.00020865,2]
[349902868,1737487840961,-500.0,0.00020865,2]
[349902870,1737487840970,-500.0,0.00020865,2]
[349902872,1737487840979,-1084.65,0.00020865,2]
[349902874,1737487840989,-500.0,0.00020865,2]
[349902876,1737487840999,-519.09,0.00020865,2]
[349902878,1737487841008,-500.0,0.00020865,2]
[349902880,1737487841017,-500.0,0.00020865,2]
[349902882,1737487841026,-918.82,0.00020865,2]
[349902884,1737487841036,-910.31,0.00020865,2]
[349902886,1737487841045,-500.0,0.00020865,2]
[349902887,1737487841055,-500.0,0.00020865,2]
[349902890,1737487841064,-500.0,0.00020865,2]
[349902892,1737487841074,-500.0,0.00020865,2]
[349902894,1737487841083,-194.46683064,0.00020866,2]
[349902895,1737487841092,-36130.7807,0.00020866,2]
[349902897,1737487841101,-177.36,0.00020871,2]
[349902899,1737487841111,-200.0,0.00020873,2]
[349902901,1737487841120,-8599.98495886,0.00020873,2]
[349902903,1737487841129,-502.66295749,0.00020876,2]
[349902905,1737487841139,-402.12837575,0.00020879,2]
[349902907,1737487841149,-402.12837575,0.00020884,2]
[349902909,1737487841159,-200.0,0.00020886,2]
[349902911,1737487841168,-527.56267235,0.00020887,2]
[349902913,1737487841178,-1721.52479998,0.00020891,2]
[349902915,1737487841187,-527.56267235,0.00020892,2]
[349902916,1737487841196,-1721.52479998,0.00020895,2]
[349902917,1737487841205,-1721.52479998,0.00020896,2]
[349902919,1737487841214,-402.12837575,0.00020899,2]
[349902921,1737487841223,-209.13062705,0.000209,2]
[349902922,1737487841233,-547.92253785,0.00020904,2]
[349902923,1737487841242,-547.92253785,0.00020909,2]
[349902925,1737487841251,-194.46683062,0.00020925,2]
[349902926,1737487841260,-502.66295749,0.00020927,2]
[349902928,1737487841270,-3000.0,0.0002093,2]
[349902929,1737487841279,-200.0,0.00020938,2]
[349902931,1737487841288,-527.56267235,0.00020939,2]
[349902932,1737487841298,-1721.52479998,0.0002094,2]
[349902946,1737487841499,-547.92253785,0.0002094,2]
[349902948,1737487841513,-181.31,0.00020955,2]
[349902950,1737487841525,-500.0,0.00020965,2]
[349902951,1737487841536,-500.0,0.00020965,2]
[349902953,1737487841545,-572.04,0.00020965,2]
[349902955,1737487841555,-500.0,0.00020965,2]
[349902956,1737487841566,-500.0,0.00020965,2]
[349902958,1737487841577,-578.13,0.00020965,2]
[349902960,1737487841586,-500.0,0.00020965,2]
[349902961,1737487841596,-500.0,0.00020965,2]
[349902963,1737487841606,-500.0,0.00020965,2]
[349902965,1737487841615,-500.0,0.00020965,2]
[349902966,1737487841624,-500.0,0.00020965,2]
[349902968,1737487841633,-500.0,0.00020965,2]
[349902969,1737487841643,-500.0,0.00020965,2]
[349902971,1737487841653,-500.0,0.00020965,2]
[349902973,1737487841663,-500.0,0.00020965,2]
[349902975,1737487841673,-500.0,0.00020965,2]
[349902976,1737487841683,-500.0,0.00020965,2]
[349902978,1737487841692,-500.0,0.00020965,2]
[349902980,1737487841702,-500.0,0.00020965,2]
[349902981,1737487841712,-500.0,0.00020965,2]
[349902983,1737487841721,-500.0,0.00020965,2]
[349902984,1737487841730,-500.0,0.00020965,2]
[349902986,1737487841740,-500.0,0.00020965,2]
[349902988,1737487841749,-500.0,0.00020965,2]
[349902989,1737487841759,-500.0,0.00020965,2]
[349902991,1737487841769,-500.0,0.00020965,2]
[349902992,1737487841778,-500.0,0.00020965,2]
[349902994,1737487841788,-500.0,0.00020965,2]
[349902996,1737487841801,-500.0,0.00020965,2]
[349902998,1737487841811,-500.0,0.00020965,2]
[349902999,1737487841820,-500.0,0.00020965,2]
[349903001,1737487841830,-500.0,0.00020965,2]
[349903002,1737487841840,-500.0,0.00020965,2]
[349903004,1737487841849,-500.0,0.00020965,2]
[349903006,1737487841858,-500.0,0.00020965,2]
[349903007,1737487841867,-500.0,0.00020965,2]
[349903009,1737487841876,-331.33888958,0.00020965,2]
[349903010,1737487841884,-500.0,0.00020965,2]
[349903012,1737487841893,-500.0,0.00020965,2]
[349903014,1737487841902,-500.0,0.00020965,2]
[349903016,1737487841912,-500.0,0.00020965,2]
[349903017,1737487841923,-500.0,0.00020965,2]
[349903018,1737487841933,-500.0,0.00020965,2]
[349903019,1737487841942,-500.0,0.00020965,2]
[349903020,1737487841952,-500.0,0.00020965,2]
[349903021,1737487841961,-500.0,0.00020965,2]
[349903022,1737487841972,-500.0,0.00020965,2]
[349903023,1737487841981,-500.0,0.00020965,2]
[349903024,1737487841992,-500.0,0.00020965,2]
[349903025,1737487842001,-500.0,0.00020965,2]
[349903026,1737487842011,-500.0,0.00020965,2]
[349903027,1737487842022,-500.0,0.00020965,2]
[349903029,1737487842031,-500.0,0.00020965,2]
[349903031,1737487842042,-500.0,0.00020965,2]
[349903034,1737487842052,-500.0,0.00020965,2]
[349903036,1737487842062,-500.0,0.00020965,2]
[349903038,1737487842072,-500.0,0.00020965,2]
[349903040,1737487842082,-500.0,0.00020965,2]
[349903042,1737487842092,-500.0,0.00020965,2]
[349903044,1737487842101,-500.0,0.00020965,2]
[349903046,1737487842111,-500.0,0.00020965,2]
[349903048,1737487842120,-500.0,0.00020965,2]
[349903050,1737487842130,-500.0,0.00020965,2]
[349903052,1737487842139,-500.0,0.00020965,2]
[349903054,1737487842149,-500.0,0.00020965,2]
[349903056,1737487842159,-500.0,0.00020965,2]
[349903058,1737487842169,-500.0,0.00020965,2]
[349903060,1737487842180,-500.0,0.00020965,2]
[349903062,1737487842189,-500.0,0.00020965,2]
[349903064,1737487842198,-500.0,0.00020965,2]
[349903066,1737487842207,-500.0,0.00020965,2]
[349903068,1737487842216,-500.0,0.00020965,2]
[349903070,1737487842225,-500.0,0.00020965,2]
[349903072,1737487842233,-500.0,0.00020965,2]
[349903073,1737487842242,-500.0,0.00020965,2]
[349903075,1737487842251,-1297.06,0.00020965,2]
[349903077,1737487842260,-500.0,0.00020965,2]
[349903079,1737487842269,-546.0,0.00020965,2]
[349903081,1737487842278,-500.0,0.00020965,2]
[349903083,1737487842288,-584.33,0.00020965,2]
[349903085,1737487842297,-304.50071317,0.00020965,2]
[349903087,1737487842306,-500.0,0.00020965,2]
[349903089,1737487842315,-500.0,0.00020965,2]
[349903091,1737487842324,-500.0,0.00020965,2]
[349903093,1737487842334,-559.57,0.00020965,2]
[349903095,1737487842343,-500.0,0.00020965,2]
[349903097,1737487842352,-936.52,0.00020965,2]
[349903099,1737487842362,-193.39241339,0.00020965,2]
[349903101,1737487842371,-500.0,0.00020965,2]
[349903103,1737487842380,-500.0,0.00020965,2]
[349903105,1737487842389,-500.0,0.00020965,2]
[349903107,1737487842398,-630.78,0.00020965,2]
[349903109,1737487842407,-500.0,0.00020965,2]
[349903111,1737487842417,-500.0,0.00020965,2]
[349903113,1737487842428,-500.0,0.00020965,2]
[349903115,1737487842437,-500.0,0.00020965,2]
[349903117,1737487842448,-500.0,0.00020965,2]
[349903119,1737487842457,-594.9,0.00020965,2]
[349903121,1737487842467,-500.0,0.00020965,2]
[349903123,1737487842476,-500.0,0.00020965,2]
[349903124,1737487842485,-500.0,0.00020965,2]
[349903126,1737487842494,-244.11408221,0.00020965,2]
[349903128,1737487842504,-500.0,0.00020965,2]
[349903130,1737487842513,-541.91,0.00020965,2]
[349903132,1737487842523,-500.0,0.00020965,2]
[349903134,1737487842536,-500.0,0.00020965,2]
[349903136,1737487842546,-1149.84,0.00020965,2]
[349903138,1737487842556,-500.0,0.00020965,2]
[349903140,1737487842566,-500.0,0.00020965,2]
[349903142,1737487842575,-500.0,0.00020965,2]
[349903145,1737487842586,-500.0,0.00020965,2]
[349903147,1737487842596,-500.0,0.00020965,2]
[349903149,1737487842608,-500.0,0.00020965,2]
[349903151,1737487842617,-500.0,0.00020965,2]
[349903152,1737487842627,-500.0,0.00020965,2]
[349903154,1737487842636,-500.0,0.00020965,2]
[349903156,1737487842646,-500.0,0.00020965,2]
[349903158,1737487842655,-500.0,0.00020965,2]
[349903160,1737487842663,-500.0,0.00020965,2]
[349903162,1737487842675,-500.0,0.00020965,2]
[349903164,1737487842684,-500.0,0.00020965,2]
[349903166,1737487842693,-500.0,0.00020965,2]
[349903168,1737487842703,-500.0,0.00020965,2]
[349903170,1737487842712,-500.0,0.00020965,2]
[349903172,1737487842722,-500.0,0.00020965,2]
[349903174,1737487842731,-2623.41,0.00020965,2]
[349903176,1737487842741,-500.0,0.00020965,2]
[349903178,1737487842751,-500.0,0.00020965,2]
[349903180,1737487842760,-500.0,0.00020965,2]
[349903182,1737487842769,-561.84,0.00020965,2]
[349903184,1737487842778,-502.59,0.00020965,2]
[349903186,1737487842788,-500.0,0.00020965,2]
[349903188,1737487842798,-500.0,0.00020966,2]
[349903190,1737487842807,-500.0,0.00020966,2]
[349903192,1737487842817,-500.0,0.00020966,2]
[349903194,1737487842827,-500.0,0.00020966,2]
[349903196,1737487842836,-500.0,0.00020966,2]
[349903198,1737487842845,-500.0,0.00020966,2]
[349903200,1737487842855,-500.0,0.00020966,2]
[349903202,1737487842864,-500.0,0.00020966,2]
[349903204,1737487842874,-500.0,0.00020966,2]
[349903206,1737487842883,-500.0,0.00020966,2]
[349903208,1737487842892,-500.0,0.00020966,2]
[349903210,1737487842901,-500.0,0.00020966,2]
[349903212,1737487842910,-500.0,0.00020966,2]
[349903214,1737487842919,-500.0,0.00020966,2]
[349903216,1737487842930,-500.0,0.00020966,2]
[349903218,1737487842939,-500.0,0.00020966,2]
[349903220,1737487842948,-500.0,0.00020966,2]
[349903222,1737487842958,-500.0,0.00020966,2]
[349903224,1737487842967,-500.0,0.00020966,2]
[349903226,1737487842977,-500.0,0.00020966,2]
[349903228,1737487842985,-500.0,0.00020966,2]
[349903230,1737487842995,-500.0,0.00020966,2]
[349903232,1737487843005,-500.0,0.00020966,2]
[349903234,1737487843014,-500.0,0.00020966,2]
[349903236,1737487843023,-500.0,0.00020966,2]
[349903238,1737487843032,-500.0,0.00020966,2]
[349903240,1737487843041,-253.73949803,0.00020966,2]
[349903242,1737487843050,-500.0,0.00020966,2]
[349903245,1737487843060,-500.0,0.00020966,2]
[349903249,1737487843070,-500.0,0.00020966,2]
[349903251,1737487843079,-500.0,0.00020966,2]
[349903252,1737487843088,-500.0,0.00020966,2]
[349903255,1737487843098,-500.0,0.00020966,2]
[349903257,1737487843110,-500.0,0.00020966,2]
[349903259,1737487843118,-500.0,0.00020966,2]
[349903261,1737487843129,-500.0,0.00020966,2]
[349903263,1737487843139,-500.0,0.00020966,2]
[349903265,1737487843147,-500.0,0.00020966,2]
[349903267,1737487843157,-500.0,0.00020966,2]
[349903269,1737487843167,-500.0,0.00020966,2]
[349903271,1737487843179,-500.0,0.00020966,2]
[349903273,1737487843189,-500.0,0.00020966,2]
[349903275,1737487843198,-500.0,0.00020966,2]
[349903278,1737487843208,-500.0,0.00020966,2]
[349903281,1737487843218,-500.0,0.00020966,2]
[349903283,1737487843227,-500.0,0.00020966,2]
[349903285,1737487843237,-500.0,0.00020966,2]
[349903287,1737487843246,-500.0,0.00020966,2]
[349903289,1737487843256,-500.0,0.00020966,2]
[349903291,1737487843265,-641.73657894,0.00020966,2]
[349903293,1737487843275,-622.45346948,0.00020966,2]
[349903295,1737487843285,-500.0,0.00020966,2]
[349903297,1737487843295,-500.0,0.00020966,2]
[349903299,1737487843305,-500.0,0.00020966,2]
[349903301,1737487843315,-500.0,0.00020966,2]
[349903303,1737487843324,-500.0,0.00020966,2]
[349903305,1737487843333,-500.0,0.00020966,2]
[349903307,1737487843342,-433.48575695,0.00020966,2]
[349903309,1737487843352,-500.0,0.00020966,2]
[349903311,1737487843363,-436.44411084,0.00020966,2]
[349903313,1737487843373,-500.0,0.00020966,2]
[349903315,1737487843383,-500.0,0.00020966,2]
[349903316,1737487843392,-500.0,0.00020966,2]
[349903317,1737487843401,-500.0,0.00020966,2]
[349903318,1737487843410,-500.0,0.00020966,2]
[349903319,1737487843419,-507.2859743,0.00020966,2]
[349903320,1737487843429,-500.0,0.00020966,2]
[349903321,1737487843438,-500.0,0.00020966,2]
[349903322,1737487843447,-500.0,0.00020966,2]
[349903323,1737487843456,-500.0,0.00020966,2]
[349903325,1737487843465,-500.0,0.00020966,2]
[349903327,1737487843475,-500.0,0.00020966,2]
[349903329,1737487843484,-500.0,0.00020966,2]
[349903330,1737487843493,-469.19382604,0.00020966,2]
[349903332,1737487843502,-500.0,0.00020966,2]
[349903334,1737487843511,-539.32198703,0.00020966,2]
[349903336,1737487843521,-500.0,0.00020966,2]
[349903338,1737487843534,-500.0,0.00020966,2]
[349903340,1737487843544,-500.0,0.00020966,2]
[349903342,1737487843553,-500.0,0.00020966,2]
[349903344,1737487843563,-500.0,0.00020966,2]
[349903346,1737487843572,-500.0,0.00020966,2]
[349903348,1737487843582,-500.0,0.00020966,2]
[349903350,1737487843591,-500.0,0.00020966,2]
[349903352,1737487843601,-500.0,0.00020966,2]
[349903354,1737487843613,-500.0,0.00020966,2]
[349903356,1737487843622,-500.0,0.00020966,2]
[349903358,1737487843631,-500.0,0.00020966,2]
[349903360,1737487843640,-500.0,0.00020966,2]
[349903362,1737487843650,-500.0,0.00020966,2]
[349903364,1737487843659,-500.0,0.00020966,2]
[349903366,1737487843669,-500.0,0.00020966,2]
[349903368,1737487843679,-500.0,0.00020966,2]
[349903370,1737487843688,-500.0,0.00020966,2]
[349903372,1737487843697,-500.0,0.00020966,2]
[349903374,1737487843706,-500.0,0.00020966,2]
[349903376,1737487843715,-500.0,0.00020966,2]
[349903378,1737487843725,-500.0,0.00020966,2]
[349903380,1737487843734,-500.0,0.00020966,2]
[349903382,1737487843743,-500.0,0.00020966,2]
[349903384,1737487843752,-500.0,0.00020966,2]
[349903386,1737487843762,-500.0,0.00020966,2]
[349903388,1737487843771,-426.14099386,0.00020966,2]
[349903390,1737487843780,-500.0,0.00020966,2]
[349903392,1737487843789,-500.0,0.00020966,2]
[349903394,1737487843799,-500.0,0.00020966,2]
[349903396,1737487843807,-500.0,0.00020966,2]
[349903398,1737487843817,-500.0,0.00020966,2]
[349903400,1737487843826,-500.0,0.00020966,2]
[349903402,1737487843835,-500.0,0.00020966,2]
[349903404,1737487843846,-500.0,0.00020966,2]
[349903406,1737487843855,-500.0,0.00020966,2]
[349903408,1737487843865,-500.0,0.00020966,2]
[349903410,1737487843876,-188.04104638,0.00020966,2]
[349903412,1737487843885,-500.0,0.00020966,2]
[349903414,1737487843895,-500.0,0.00020966,2]
[349903416,1737487843904,-500.0,0.00020966,2]
[349903418,1737487843913,-500.0,0.00020966,2]
[349903421,1737487843922,-500.0,0.00020966,2]
[349903423,1737487843932,-500.0,0.00020966,2]
[349903425,1737487843941,-500.0,0.00020966,2]
[349903427,1737487843951,-500.0,0.00020966,2]
[349903429,1737487843960,-500.0,0.00020966,2]
[349903431,1737487843970,-500.0,0.00020966,2]
[349903433,1737487843980,-500.0,0.00020966,2]
[349903435,1737487843990,-500.0,0.00020966,2]
[349903437,1737487843999,-500.0,0.00020966,2]
[349903439,1737487844008,-500.0,0.00020966,2]
[349903441,1737487844017,-500.0,0.00020966,2]
[349903443,1737487844026,-500.0,0.00020966,2]
[349903445,1737487844035,-500.0,0.00020966,2]
[349903447,1737487844044,-500.0,0.00020966,2]
[349903449,1737487844053,-500.0,0.00020966,2]
[349903451,1737487844061,-500.0,0.00020966,2]
[349903453,1737487844070,-500.0,0.00020966,2]
[349903455,1737487844079,-584.41976524,0.00020966,2]
[349903457,1737487844088,-500.0,0.00020966,2]
[349903459,1737487844097,-500.0,0.00020966,2]
[349903461,1737487844106,-500.0,0.00020966,2]
[349903463,1737487844115,-500.0,0.00020966,2]
[349903465,1737487844126,-500.0,0.00020966,2]
[349903467,1737487844136,-500.0,0.00020966,2]
[349903469,1737487844148,-694.35,0.00020966,2]
[349903471,1737487844159,-1290.63,0.00020966,2]
[349903473,1737487844169,-500.0,0.00020966,2]
[349903475,1737487844184,-977.13,0.00020966,2]
[349903478,1737487844195,-1930.84,0.00020966,2]
[349903480,1737487844209,-501.71252082,0.00020966,2]
[349903481,1737487844219,-500.0,0.00020966,2]
[349903484,1737487844231,-536.71,0.00020966,2]
[349903486,1737487844242,-500.0,0.00020966,2]
[349903488,1737487844251,-500.0,0.00020966,2]
[349903490,1737487844260,-500.0,0.00020966,2]
[349903492,1737487844269,-500.0,0.00020966,2]
[349903494,1737487844278,-500.0,0.00020966,7]
[349903495,1737487844288,-854.15,0.00020966,2]
[349903497,1737487844297,-500.0,0.00020966,2]
[349903499,1737487844306,-500.0,0.00020966,2]
[349903501,1737487844316,-500.0,0.00020966,2]
[349903503,1737487844326,-500.0,0.00020966,2]
[349903505,1737487844336,-545.81,0.00020966,2]
[349903507,1737487844345,-500.0,0.00020966,2]
[349903509,1737487844355,-500.0,0.00020966,2]
[349903511,1737487844365,-500.0,0.00020966,2]
[349903513,1737487844375,-500.0,0.00020966,2]
[349903515,1737487844384,-500.0,0.00020966,2]
[349903517,1737487844393,-500.0,0.00020966,2]
[349903519,1737487844403,-500.0,0.00020966,2]
[349903521,1737487844412,-500.0,0.00020966,2]
[349903523,1737487844422,-500.0,0.00020966,2]
[349903526,1737487844432,-500.0,0.00020966,2]
[349903528,1737487844442,-500.0,0.00020966,2]
[349903529,1737487844451,-500.0,0.00020966,2]
[349903531,1737487844460,-500.0,0.00020966,2]
[349903533,1737487844470,-500.0,0.00020966,2]
[349903535,1737487844479,-500.0,0.00020966,2]
[349903537,1737487844489,-500.0,0.00020966,2]
[349903539,1737487844498,-500.0,0.00020966,2]
[349903541,1737487844507,-265.88374902,0.00020966,2]
[349903543,1737487844517,-500.0,0.00020966,2]
[349903545,1737487844528,-500.0,0.00020966,2]
[349903547,1737487844539,-500.0,0.00020966,2]
[349903549,1737487844548,-500.0,0.00020966,2]
[349903551,1737487844557,-500.0,0.00020966,2]
[349903553,1737487844566,-193.79983161,0.00020966,2]
[349903555,1737487844575,-500.0,0.00020966,2]
[349903557,1737487844584,-500.0,0.00020966,2]
[349903559,1737487844595,-500.0,0.00020966,2]
[349903561,1737487844604,-500.0,0.00020966,2]
[349903563,1737487844615,-531.58912321,0.00020966,2]
[349903565,1737487844623,-500.0,0.00020966,2]
[349903567,1737487844633,-500.0,0.00020966,2]
[349903569,1737487844641,-500.0,0.00020966,2]
[349903571,1737487844650,-500.0,0.00020966,2]
[349903573,1737487844660,-500.0,0.00020966,2]
[349903575,1737487844670,-500.0,0.00020966,2]
[349903577,1737487844681,-500.0,0.00020966,2]
[349903579,1737487844691,-500.0,0.00020966,2]
[349903581,1737487844700,-500.0,0.00020966,2]
[349903583,1737487844709,-284.33399713,0.00020966,2]
[349903585,1737487844718,-625.65938697,0.00020967,2]
[349903587,1737487844728,-500.0,0.00020967,2]
[349903588,1737487844737,-150.0,0.00020972,2]
[349903589,1737487844745,-150.0,0.00020975,2]
[349903590,1737487844754,-150.0,0.00020976,2]
[349903591,1737487844763,-2500.0,0.0002098,2]
[349903592,1737487844772,-194.46683062,0.00020985,2]
[349903593,1737487844781,-150.0,0.00020986,2]
[349903594,1737487844790,-150.0,0.00020994,2]
[349903595,1737487844799,-31968.36975515,0.00021,4]
[349903618,1737487845016,-325.944,0.00021,4]
[349903620,1737487845027,-9705.68624485,0.00021,4]
[349903622,1737487845038,-3496.22358974,0.00021,4]
[349903626,1737487845061,-5663.00549854,0.00021,4]
[349903677,1737487845545,-387.6000015,0.00020864,2]
[349903751,1737487846348,-112.3999985,0.00020864,2]
[349903752,1737487846358,-500.0,0.00020864,2]
[349903753,1737487846367,-457.0051951,0.00020864,2]
[349903754,1737487846377,-45.9248049,0.00020864,2]
[349903755,1737487846386,-500.0,0.00020865,2]
[349903756,1737487846395,-500.0,0.00020865,2]
[349903757,1737487846404,-500.0,0.00020865,2]
[349903758,1737487846413,-158.534274,0.00020865,2]
[349903759,1737487846422,-500.0,0.00020865,2]
[349903760,1737487846433,-500.0,0.00020965,2]
[349903761,1737487846442,-500.0,0.00020965,2]
[349903762,1737487846452,-122.3409211,0.00020965,2]
[349903764,1737487846476,-1111.67,0.00020865,2]
[349903766,1737487846485,-377.6590789,0.00020965,2]
[349903768,1737487846495,-500.0,0.00020965,2]
[349903770,1737487846504,-150.0,0.00020995,2]
[349903772,1737487846515,-116.93628303,0.00021,4]
[349903774,1737487846524,-150.0,0.00021003,2]
[349903776,1737487846538,-150.0,0.00021004,2]
[349903778,1737487846547,-150.0,0.00021007,2]
[349903780,1737487846556,-500.0,0.00021011,2]
[349903782,1737487846567,-150.0,0.00021011,2]